[Event "Early-Titled-Tuesday-Blitz-January-16-2024"]
[Site "Chess.com"]
[Date "2024.01.16"]
[Round "3"]
[White "Byniolus"]
[Black "m_ezat"]
[Result "1-0"]
[WhiteElo "2758"]
[BlackElo "2492"]
[TimeControl "180+1"]
[EndTime "8:27:39 PST"]
[Termination "Byniolus won on time"]

1. d4 {[%clk 0:03:00.9]} 1... Nf6 {[%clk 0:02:06.5]} 2. Nf3 {[%clk 0:03:00.8]}
2... g6 {[%clk 0:02:05.1]} 3. Bf4 {[%clk 0:03:00.9]} 3... Bg7 {[%clk 0:02:03.4]}
4. e3 {[%clk 0:03:01.4]} 4... O-O {[%clk 0:02:03.6]} 5. Be2 {[%clk 0:03:02.1]}
5... d6 {[%clk 0:02:03.9]} 6. h3 {[%clk 0:03:02.7]} 6... Nfd7 {[%clk 0:02:04.3]}
7. O-O {[%clk 0:03:02.9]} 7... e5 {[%clk 0:02:04.4]} 8. Bh2 {[%clk 0:03:03.8]}
8... Nc6 {[%clk 0:00:47.5]} 9. c4 {[%clk 0:03:03.3]} 9... Kh8 {[%clk 0:00:46.9]}
10. Nc3 {[%clk 0:03:03.3]} 10... f5 {[%clk 0:00:46.7]} 11. Rc1 {[%clk
0:03:03.4]} 11... g5 {[%clk 0:00:45.9]} 12. dxe5 {[%clk 0:03:00.5]} 12... Ndxe5
{[%clk 0:00:45.1]} 13. Nd4 {[%clk 0:02:56.6]} 13... g4 {[%clk 0:00:43.3]} 14.
hxg4 {[%clk 0:02:50]} 14... Nxg4 {[%clk 0:00:41.2]} 15. Bf4 {[%clk 0:02:44.1]}
15... Nce5 {[%clk 0:00:39.8]} 16. g3 {[%clk 0:02:17.7]} 16... h5 {[%clk
0:00:35.5]} 17. Kg2 {[%clk 0:02:14.8]} 17... b6 {[%clk 0:00:28.6]} 18. Rh1
{[%clk 0:02:14.7]} 18... Bb7+ {[%clk 0:00:28.3]} 19. f3 {[%clk 0:02:15.4]} 19...
Qe8 {[%clk 0:00:24.4]} 20. Nd5 {[%clk 0:02:12]} 20... Rc8 {[%clk 0:00:22.6]} 21.
fxg4 {[%clk 0:02:10.1]} 21... fxg4 {[%clk 0:00:21]} 22. Bxg4 {[%clk 0:02:01.5]}
22... Nxg4 {[%clk 0:00:18.5]} 23. Qxg4 {[%clk 0:02:01.5]} 23... Qe4+ {[%clk
0:00:18.7]} 24. Qf3 {[%clk 0:01:58.3]} 24... Qxf3+ {[%clk 0:00:18.4]} 25. Nxf3
{[%clk 0:01:57.9]} 25... c6 {[%clk 0:00:16.3]} 26. Rxh5+ {[%clk 0:01:56]} 26...
Kg8 {[%clk 0:00:16.6]} 27. Ne7+ {[%clk 0:01:56.6]} 27... Kf7 {[%clk 0:00:17.4]}
28. Nxc8 {[%clk 0:01:57.2]} 28... Rxc8 {[%clk 0:00:13.9]} 29. b3 {[%clk
0:01:53.7]} 29... c5 {[%clk 0:00:13.8]} 30. Rd1 {[%clk 0:01:49.5]} 30... Rd8
{[%clk 0:00:13.3]} 31. Rxd6 {[%clk 0:01:48.9]} 31... Rxd6 {[%clk 0:00:12.2]} 32.
Bxd6 {[%clk 0:01:49.8]} 32... Kg6 {[%clk 0:00:10.6]} 33. Rg5+ {[%clk 0:01:43.9]}
33... Kf7 {[%clk 0:00:09.8]} 34. Kf2 {[%clk 0:01:41.6]} 1-0

[Event "Early-Titled-Tuesday-Blitz-January-16-2024"]
[Site "Chess.com"]
[Date "2024.01.16"]
[Round "3"]
[White "kritipatel"]
[Black "NewYearGirl"]
[Result "0-1"]
[WhiteElo "2154"]
[BlackElo "2412"]
[TimeControl "180+1"]
[EndTime "8:27:43 PST"]
[Termination "NewYearGirl won by resignation"]

1. e4 {[%clk 0:03:00.9]} 1... c5 {[%clk 0:03:00.3]} 2. c3 {[%clk 0:02:55.5]}
2... d5 {[%clk 0:02:59.6]} 3. exd5 {[%clk 0:02:55.1]} 3... Nf6 {[%clk
0:03:00.2]} 4. Bb5+ {[%clk 0:02:53.6]} 4... Nbd7 {[%clk 0:02:57.6]} 5. d4 {[%clk
0:02:49.5]} 5... cxd4 {[%clk 0:02:49.8]} 6. cxd4 {[%clk 0:02:46.9]} 6... Qa5+
{[%clk 0:02:46]} 7. Nc3 {[%clk 0:02:36.7]} 7... Nxd5 {[%clk 0:02:42.9]} 8. Qb3
{[%clk 0:02:23.4]} 8... Nxc3 {[%clk 0:02:33.8]} 9. bxc3 {[%clk 0:02:22.1]} 9...
e6 {[%clk 0:02:30.5]} 10. Nf3 {[%clk 0:02:11]} 10... Bd6 {[%clk 0:02:27.2]} 11.
Bxd7+ {[%clk 0:01:56.2]} 11... Bxd7 {[%clk 0:02:21.2]} 12. O-O {[%clk
0:01:50.1]} 12... Bc6 {[%clk 0:02:16.2]} 13. c4 {[%clk 0:01:32.1]} 13... O-O
{[%clk 0:02:02.4]} 14. Bd2 {[%clk 0:01:26.6]} 14... Qh5 {[%clk 0:01:58.9]} 15.
h3 {[%clk 0:01:03.5]} 15... Rad8 {[%clk 0:01:41.9]} 16. Rfe1 {[%clk 0:00:56.1]}
16... Bc7 {[%clk 0:01:31.3]} 17. Bb4 {[%clk 0:00:45.9]} 17... Rfe8 {[%clk
0:01:27.4]} 18. Rad1 {[%clk 0:00:45.4]} 18... a5 {[%clk 0:01:22.5]} 19. Ba3
{[%clk 0:00:30.7]} 19... a4 {[%clk 0:01:21.3]} 20. Qc3 {[%clk 0:00:22.1]} 20...
Ba5 {[%clk 0:01:18.4]} 21. Bb4 {[%clk 0:00:20.5]} 21... Bxb4 {[%clk 0:01:14.9]}
22. Qxb4 {[%clk 0:00:20.8]} 22... Bxf3 {[%clk 0:01:15.2]} 23. gxf3 {[%clk
0:00:20.7]} 23... Qxf3 {[%clk 0:01:15.3]} 24. Re3 {[%clk 0:00:20.9]} 24... Qxd1+
{[%clk 0:01:14.6]} 25. Kg2 {[%clk 0:00:19.8]} 25... Qxd4 {[%clk 0:01:13.6]} 26.
Qxb7 {[%clk 0:00:20.2]} 26... Qxc4 {[%clk 0:01:11.4]} 27. Rg3 {[%clk 0:00:19.6]}
27... Qd5+ {[%clk 0:01:11.5]} 28. Qxd5 {[%clk 0:00:19.1]} 28... Rxd5 {[%clk
0:01:12.4]} 0-1

[Event "Early-Titled-Tuesday-Blitz-January-16-2024"]
[Site "Chess.com"]
[Date "2024.01.16"]
[Round "3"]
[White "DenLaz"]
[Black "IM_ArthurDW08"]
[Result "1-0"]
[WhiteElo "3090"]
[BlackElo "2789"]
[TimeControl "180+1"]
[EndTime "8:27:47 PST"]
[Termination "DenLaz won by resignation"]

1. d4 {[%clk 0:03:00.9]} 1... Nf6 {[%clk 0:02:43.1]} 2. c4 {[%clk 0:03:00.9]}
2... c5 {[%clk 0:02:40.7]} 3. d5 {[%clk 0:03:00.9]} 3... e6 {[%clk 0:02:41.3]}
4. Nc3 {[%clk 0:03:00.9]} 4... exd5 {[%clk 0:02:41.9]} 5. cxd5 {[%clk
0:03:01.8]} 5... d6 {[%clk 0:02:42.8]} 6. e4 {[%clk 0:03:02.3]} 6... g6 {[%clk
0:02:43.4]} 7. h3 {[%clk 0:03:01.2]} 7... Bg7 {[%clk 0:02:43.2]} 8. Bd3 {[%clk
0:03:01.8]} 8... O-O {[%clk 0:02:43.2]} 9. Nf3 {[%clk 0:03:02.5]} 9... b5 {[%clk
0:02:42.2]} 10. O-O {[%clk 0:02:57]} 10... c4 {[%clk 0:02:38.2]} 11. Bc2 {[%clk
0:02:56.8]} 11... b4 {[%clk 0:02:38.2]} 12. Ne2 {[%clk 0:02:56.9]} 12... Re8
{[%clk 0:02:36.5]} 13. Ng3 {[%clk 0:02:56.3]} 13... Nbd7 {[%clk 0:02:36.8]} 14.
Re1 {[%clk 0:02:51.6]} 14... Nc5 {[%clk 0:02:29.5]} 15. Bf4 {[%clk 0:02:51]}
15... Bb7 {[%clk 0:02:07.4]} 16. Nd4 {[%clk 0:02:47.3]} 16... Qb6 {[%clk
0:02:04.9]} 17. Ndf5 {[%clk 0:01:57.6]} 17... gxf5 {[%clk 0:01:59]} 18. Nxf5
{[%clk 0:01:56.7]} 18... Ncxe4 {[%clk 0:01:38.2]} 19. Bxe4 {[%clk 0:01:54.3]}
19... Rxe4 {[%clk 0:01:39.1]} 20. Rxe4 {[%clk 0:01:35.9]} 20... Nxe4 {[%clk
0:01:40]} 21. Be3 {[%clk 0:01:28.7]} 21... Nxf2 {[%clk 0:00:41.7]} 22. Bxf2
{[%clk 0:01:17.3]} 22... Qc7 {[%clk 0:00:41]} 23. Qg4 {[%clk 0:01:10.4]} 23...
f6 {[%clk 0:00:39.7]} 24. Re1 {[%clk 0:01:10.1]} 24... h5 {[%clk 0:00:24]} 25.
Qg6 {[%clk 0:01:04.4]} 1-0

[Event "Early-Titled-Tuesday-Blitz-January-16-2024"]
[Site "Chess.com"]
[Date "2024.01.16"]
[Round "3"]
[White "stepanosinovsky"]
[Black "Alenzer"]
[Result "0-1"]
[WhiteElo "2386"]
[BlackElo "2125"]
[TimeControl "180+1"]
[EndTime "8:27:48 PST"]
[Termination "Alenzer won by resignation"]

1. Nf3 {[%clk 0:03:00.9]} 1... d5 {[%clk 0:02:59.5]} 2. g3 {[%clk 0:03:01.8]}
2... c5 {[%clk 0:02:57.5]} 3. Bg2 {[%clk 0:03:02.7]} 3... Nc6 {[%clk 0:02:57.5]}
4. O-O {[%clk 0:03:03.6]} 4... Nf6 {[%clk 0:02:56.4]} 5. d3 {[%clk 0:03:03]}
5... e5 {[%clk 0:02:54]} 6. Nbd2 {[%clk 0:03:03.9]} 6... Bd6 {[%clk 0:02:52]} 7.
e4 {[%clk 0:03:04.8]} 7... O-O {[%clk 0:02:49.9]} 8. exd5 {[%clk 0:03:04.3]}
8... Nxd5 {[%clk 0:02:49.6]} 9. Nc4 {[%clk 0:03:05.2]} 9... Bc7 {[%clk
0:02:44.8]} 10. Re1 {[%clk 0:02:50.6]} 10... Re8 {[%clk 0:02:39.3]} 11. a4
{[%clk 0:02:48.8]} 11... Bg4 {[%clk 0:02:34.5]} 12. c3 {[%clk 0:02:44.3]} 12...
Qd7 {[%clk 0:02:17.9]} 13. Qb3 {[%clk 0:02:32.1]} 13... b6 {[%clk 0:01:59.4]}
14. Ncxe5 {[%clk 0:01:34.5]} 14... Bxe5 {[%clk 0:01:33.2]} 15. Nxe5 {[%clk
0:01:01.7]} 15... Nxe5 {[%clk 0:01:20.1]} 16. Rxe5 {[%clk 0:00:17.3]} 16... Rxe5
{[%clk 0:01:14.3]} 17. Bd2 {[%clk 0:00:17.3]} 17... Rae8 {[%clk 0:01:09.3]} 18.
d4 {[%clk 0:00:13.3]} 18... cxd4 {[%clk 0:01:06.9]} 19. cxd4 {[%clk 0:00:14.2]}
19... Re2 {[%clk 0:00:58.6]} 20. Be1 {[%clk 0:00:07.6]} 20... Rxe1+ {[%clk
0:00:53.9]} 0-1

[Event "Early-Titled-Tuesday-Blitz-January-16-2024"]
[Site "Chess.com"]
[Date "2024.01.16"]
[Round "3"]
[White "Jumbo"]
[Black "NoHeThTo"]
[Result "0-1"]
[WhiteElo "2922"]
[BlackElo "2718"]
[TimeControl "180+1"]
[EndTime "8:27:49 PST"]
[Termination "NoHeThTo won by resignation"]

1. d4 {[%clk 0:03:00.9]} 1... Nf6 {[%clk 0:02:59.6]} 2. c4 {[%clk 0:02:59.6]}
2... g6 {[%clk 0:02:58.9]} 3. g3 {[%clk 0:02:59.6]} 3... Bg7 {[%clk 0:02:56.2]}
4. Bg2 {[%clk 0:03:00.1]} 4... O-O {[%clk 0:02:57]} 5. Nf3 {[%clk 0:03:00.4]}
5... d6 {[%clk 0:02:57.9]} 6. O-O {[%clk 0:03:00.7]} 6... Nc6 {[%clk 0:02:58.5]}
7. Nc3 {[%clk 0:03:01.3]} 7... e5 {[%clk 0:02:58.7]} 8. dxe5 {[%clk 0:02:57.7]}
8... Nxe5 {[%clk 0:02:59.6]} 9. Qb3 {[%clk 0:02:42.8]} 9... Nfd7 {[%clk
0:02:56]} 10. Nxe5 {[%clk 0:02:34.2]} 10... Bxe5 {[%clk 0:02:54.1]} 11. Be3
{[%clk 0:02:28.4]} 11... c6 {[%clk 0:02:52.5]} 12. Rad1 {[%clk 0:02:28.3]} 12...
Qc7 {[%clk 0:02:52.7]} 13. Qc2 {[%clk 0:02:20.8]} 13... Nc5 {[%clk 0:02:51]} 14.
b4 {[%clk 0:02:14]} 14... Ne6 {[%clk 0:02:30.1]} 15. Qd2 {[%clk 0:02:03.4]}
15... a5 {[%clk 0:02:26.7]} 16. b5 {[%clk 0:02:03]} 16... Rd8 {[%clk 0:02:14.1]}
17. bxc6 {[%clk 0:01:50.3]} 17... bxc6 {[%clk 0:02:14]} 18. f4 {[%clk
0:01:50.7]} 18... Bg7 {[%clk 0:02:07.1]} 19. f5 {[%clk 0:01:46]} 19... gxf5
{[%clk 0:02:07.8]} 20. Rxf5 {[%clk 0:01:45.8]} 20... Ba6 {[%clk 0:02:08.5]} 21.
Rdf1 {[%clk 0:01:39]} 21... Bxc4 {[%clk 0:02:01.8]} 22. Rxf7 {[%clk 0:01:37.6]}
22... Qxf7 {[%clk 0:02:02.5]} 23. Rxf7 {[%clk 0:01:37.9]} 23... Kxf7 {[%clk
0:02:03.4]} 24. Bxc6 {[%clk 0:01:38.3]} 24... Rac8 {[%clk 0:02:00.5]} 25. Bb7
{[%clk 0:01:13.6]} 25... Rc7 {[%clk 0:01:54.7]} 26. Bb6 {[%clk 0:01:13.4]} 26...
Rxb7 {[%clk 0:01:30.3]} 27. Bxd8 {[%clk 0:01:13.5]} 27... Bd4+ {[%clk
0:01:16.4]} 28. e3 {[%clk 0:01:04.9]} 28... Be5 {[%clk 0:01:04.9]} 29. Bh4
{[%clk 0:00:58.4]} 29... Nc5 {[%clk 0:01:02]} 30. e4 {[%clk 0:00:43.5]} 30...
Nd3 {[%clk 0:00:58.3]} 31. Kg2 {[%clk 0:00:41.7]} 31... Rb2 {[%clk 0:00:57.8]}
32. Qxb2 {[%clk 0:00:40.7]} 32... Nxb2 {[%clk 0:00:58.7]} 33. Nd5 {[%clk
0:00:38.1]} 33... Bxa2 {[%clk 0:00:56.3]} 34. Kf3 {[%clk 0:00:35.1]} 34... Bxd5
{[%clk 0:00:56.1]} 35. exd5 {[%clk 0:00:36]} 35... a4 {[%clk 0:00:56.6]} 0-1

[Event "Early-Titled-Tuesday-Blitz-January-16-2024"]
[Site "Chess.com"]
[Date "2024.01.16"]
[Round "3"]
[White "Alexei_Kornev"]
[Black "Olya_Oblachko"]
[Result "1-0"]
[WhiteElo "2703"]
[BlackElo "2323"]
[TimeControl "180+1"]
[EndTime "8:27:49 PST"]
[Termination "Alexei_Kornev won on time"]

1. e4 {[%clk 0:03:00.9]} 1... e6 {[%clk 0:03:00.9]} 2. d4 {[%clk 0:03:00.2]}
2... d5 {[%clk 0:03:01]} 3. Nc3 {[%clk 0:03:00.8]} 3... dxe4 {[%clk 0:02:56.3]}
4. Nxe4 {[%clk 0:03:00.3]} 4... Nd7 {[%clk 0:02:57.2]} 5. Nf3 {[%clk 0:02:59.9]}
5... Ngf6 {[%clk 0:02:57.4]} 6. Bd3 {[%clk 0:02:59.6]} 6... Nxe4 {[%clk
0:02:55]} 7. Bxe4 {[%clk 0:03:00.5]} 7... Nf6 {[%clk 0:02:55.3]} 8. Bg5 {[%clk
0:02:57.1]} 8... Bd6 {[%clk 0:02:51.1]} 9. Qd3 {[%clk 0:02:53.3]} 9... a6 {[%clk
0:02:33.2]} 10. O-O-O {[%clk 0:02:50.3]} 10... h6 {[%clk 0:02:27.1]} 11. Bh4
{[%clk 0:02:49.8]} 11... Be7 {[%clk 0:02:25.3]} 12. Bxf6 {[%clk 0:02:44.3]}
12... Bxf6 {[%clk 0:02:24.9]} 13. Kb1 {[%clk 0:02:43.7]} 13... Qd6 {[%clk
0:02:12.1]} 14. Rhe1 {[%clk 0:02:39.8]} 14... O-O {[%clk 0:02:09.8]} 15. h4
{[%clk 0:02:36.9]} 15... Rb8 {[%clk 0:01:52.5]} 16. g4 {[%clk 0:02:34.6]} 16...
Qf4 {[%clk 0:01:49.3]} 17. g5 {[%clk 0:02:34.1]} 17... Be7 {[%clk 0:01:46.5]}
18. Rg1 {[%clk 0:02:18.4]} 18... Kh8 {[%clk 0:01:44.1]} 19. Ne5 {[%clk
0:02:14.5]} 19... Bd6 {[%clk 0:01:24.4]} 20. gxh6 {[%clk 0:02:05.3]} 20... Qxh6
{[%clk 0:01:20]} 21. f4 {[%clk 0:02:02.3]} 21... Qxf4 {[%clk 0:01:13.2]} 22.
Rdf1 {[%clk 0:02:00.7]} 22... Bxe5 {[%clk 0:01:08.1]} 23. Rxf4 {[%clk
0:01:57.5]} 23... Bxf4 {[%clk 0:01:09]} 24. Qf3 {[%clk 0:01:51.4]} 24... Bh6
{[%clk 0:01:03.4]} 25. Bd3 {[%clk 0:01:50.9]} 25... Bd7 {[%clk 0:00:59.8]} 26.
Qe4 {[%clk 0:01:48.2]} 26... f5 {[%clk 0:00:58]} 27. Qe5 {[%clk 0:01:48.1]}
27... Bc6 {[%clk 0:00:34.6]} 28. Rg6 {[%clk 0:01:42.7]} 28... Kh7 {[%clk
0:00:32.9]} 29. Rxe6 {[%clk 0:01:40.8]} 29... Be4 {[%clk 0:00:27.3]} 30. Bxe4
{[%clk 0:01:35.7]} 30... fxe4 {[%clk 0:00:28.2]} 31. Qxe4+ {[%clk 0:01:36.3]}
31... Kh8 {[%clk 0:00:27]} 32. a3 {[%clk 0:01:36.3]} 32... Rbd8 {[%clk
0:00:21.7]} 33. c3 {[%clk 0:01:35.4]} 33... Rd7 {[%clk 0:00:05.8]} 34. Qxb7
{[%clk 0:01:32.9]} 1-0

[Event "Early-Titled-Tuesday-Blitz-January-16-2024"]
[Site "Chess.com"]
[Date "2024.01.16"]
[Round "3"]
[White "deribas12345"]
[Black "I_am_Javi"]
[Result "0-1"]
[WhiteElo "2492"]
[BlackElo "2767"]
[TimeControl "180+1"]
[EndTime "8:27:50 PST"]
[Termination "I_am_Javi won by resignation"]

1. d4 {[%clk 0:02:23.2]} 1... Nf6 {[%clk 0:02:55.7]} 2. c4 {[%clk 0:02:23.2]}
2... e6 {[%clk 0:02:55.9]} 3. Nc3 {[%clk 0:02:23]} 3... Bb4 {[%clk 0:02:55.6]}
4. a3 {[%clk 0:02:23.6]} 4... Bxc3+ {[%clk 0:02:55.9]} 5. bxc3 {[%clk
0:02:24.5]} 5... b6 {[%clk 0:02:56.6]} 6. f3 {[%clk 0:02:25]} 6... Ba6 {[%clk
0:02:56.9]} 7. e4 {[%clk 0:02:25.3]} 7... d5 {[%clk 0:02:55.5]} 8. e5 {[%clk
0:02:22]} 8... Nfd7 {[%clk 0:02:49]} 9. cxd5 {[%clk 0:02:18.4]} 9... Bxf1 {[%clk
0:02:49.9]} 10. Kxf1 {[%clk 0:02:19]} 10... exd5 {[%clk 0:02:49.8]} 11. Nh3
{[%clk 0:02:18.9]} 11... O-O {[%clk 0:02:49.8]} 12. f4 {[%clk 0:02:05.4]} 12...
c5 {[%clk 0:02:43.6]} 13. Ra2 {[%clk 0:02:05.2]} 13... Nc6 {[%clk 0:02:41.5]}
14. Ng5 {[%clk 0:01:57]} 14... h6 {[%clk 0:02:38.4]} 15. Nf3 {[%clk 0:01:56.7]}
15... Rc8 {[%clk 0:02:36.5]} 16. f5 {[%clk 0:01:44.8]} 16... cxd4 {[%clk
0:02:32.4]} 17. cxd4 {[%clk 0:01:44.5]} 17... Re8 {[%clk 0:02:24.8]} 18. h4
{[%clk 0:01:42.8]} 18... Na5 {[%clk 0:02:22.4]} 19. Rh3 {[%clk 0:01:25.8]} 19...
Qc7 {[%clk 0:02:19.9]} 20. Bf4 {[%clk 0:01:25.2]} 20... Qc4+ {[%clk 0:02:15.9]}
21. Re2 {[%clk 0:01:24.7]} 21... Nc5 {[%clk 0:02:07.2]} 22. Bxh6 {[%clk
0:01:12.5]} 22... Ne4 {[%clk 0:01:57.8]} 23. Bxg7 {[%clk 0:00:55.3]} 23... Kxg7
{[%clk 0:01:51]} 24. Ng5 {[%clk 0:00:36.6]} 24... Qc1 {[%clk 0:01:43.2]} 25. Re1
{[%clk 0:00:25]} 25... Qxd1 {[%clk 0:01:41.1]} 26. Rxd1 {[%clk 0:00:25.4]} 26...
Nxg5 {[%clk 0:01:34.7]} 27. hxg5 {[%clk 0:00:26.3]} 27... Rh8 {[%clk 0:01:34.4]}
28. Rdd3 {[%clk 0:00:11.3]} 28... Rxh3 {[%clk 0:01:33.4]} 29. gxh3 {[%clk
0:00:11.2]} 29... Rh8 {[%clk 0:01:30]} 30. a4 {[%clk 0:00:09.5]} 30... Rh5
{[%clk 0:01:28.7]} 31. Rg3 {[%clk 0:00:07.9]} 31... Rh4 {[%clk 0:01:29.2]} 32.
g6 {[%clk 0:00:05.8]} 32... Rf4+ {[%clk 0:01:28.4]} 33. Ke2 {[%clk 0:00:05.3]}
33... Rxf5 {[%clk 0:01:28.9]} 34. gxf7+ {[%clk 0:00:05.8]} 34... Kxf7 {[%clk
0:01:29.8]} 35. Rf3 {[%clk 0:00:05.9]} 35... Ke6 {[%clk 0:01:26.9]} 0-1

[Event "Early-Titled-Tuesday-Blitz-January-16-2024"]
[Site "Chess.com"]
[Date "2024.01.16"]
[Round "3"]
[White "Mikasinski"]
[Black "Soledadense88"]
[Result "1-0"]
[WhiteElo "2610"]
[BlackElo "2408"]
[TimeControl "180+1"]
[EndTime "8:27:53 PST"]
[Termination "Mikasinski won by resignation"]

1. e4 {[%clk 0:03:00.9]} 1... e6 {[%clk 0:02:58.6]} 2. d4 {[%clk 0:02:59.8]}
2... d5 {[%clk 0:02:57.6]} 3. Nc3 {[%clk 0:03:00.7]} 3... dxe4 {[%clk
0:02:50.2]} 4. Nxe4 {[%clk 0:03:01.3]} 4... Bd7 {[%clk 0:02:50.6]} 5. Nf3 {[%clk
0:03:01.4]} 5... Bc6 {[%clk 0:02:50.7]} 6. Bd3 {[%clk 0:03:02.1]} 6... Nd7
{[%clk 0:02:50]} 7. O-O {[%clk 0:03:02]} 7... Ngf6 {[%clk 0:02:50.1]} 8. Ng3
{[%clk 0:03:02.8]} 8... Be7 {[%clk 0:02:49.6]} 9. c4 {[%clk 0:03:02.8]} 9... O-O
{[%clk 0:02:47.2]} 10. b3 {[%clk 0:03:03.1]} 10... Bxf3 {[%clk 0:02:44.1]} 11.
Qxf3 {[%clk 0:03:03.7]} 11... c6 {[%clk 0:02:44.6]} 12. Rd1 {[%clk 0:03:03.7]}
12... Qa5 {[%clk 0:02:44.3]} 13. a3 {[%clk 0:02:47.8]} 13... Rad8 {[%clk
0:02:23.4]} 14. Bb2 {[%clk 0:02:41.9]} 14... Rfe8 {[%clk 0:02:16.1]} 15. b4
{[%clk 0:02:38]} 15... Qc7 {[%clk 0:02:15.5]} 16. Rac1 {[%clk 0:02:37.4]} 16...
Qb8 {[%clk 0:02:06.2]} 17. h4 {[%clk 0:02:10.1]} 17... Nf8 {[%clk 0:01:47.5]}
18. h5 {[%clk 0:02:07.6]} 18... h6 {[%clk 0:01:43.2]} 19. Ne4 {[%clk 0:02:05.6]}
19... Nxe4 {[%clk 0:01:41.7]} 20. Qxe4 {[%clk 0:02:03.2]} 20... Bf6 {[%clk
0:01:26.3]} 21. Bb1 {[%clk 0:02:03]} 21... Rd7 {[%clk 0:01:25.5]} 22. Rc3 {[%clk
0:01:54.7]} 22... Red8 {[%clk 0:01:22.2]} 23. Rf3 {[%clk 0:01:50.2]} 23... b5
{[%clk 0:01:06]} 24. Rxf6 {[%clk 0:01:41.6]} 24... gxf6 {[%clk 0:01:05.4]} 25.
Rd3 {[%clk 0:01:23.5]} 25... f5 {[%clk 0:00:58.5]} 26. Qh4 {[%clk 0:01:12.9]}
26... Nh7 {[%clk 0:00:26.4]} 27. Rg3+ {[%clk 0:01:11.6]} 27... Kf8 {[%clk
0:00:14.4]} 28. d5 {[%clk 0:01:11.7]} 28... cxd5 {[%clk 0:00:10.6]} 29. Bg7+
{[%clk 0:01:10.7]} 29... Ke8 {[%clk 0:00:10.5]} 30. Bxh6 {[%clk 0:01:11.5]}
30... dxc4 {[%clk 0:00:10.5]} 31. Rg8+ {[%clk 0:01:10.2]} 1-0

[Event "Early-Titled-Tuesday-Blitz-January-16-2024"]
[Site "Chess.com"]
[Date "2024.01.16"]
[Round "3"]
[White "Grossboss19"]
[Black "JMCadavid1998"]
[Result "1-0"]
[WhiteElo "2549"]
[BlackElo "2181"]
[TimeControl "180+1"]
[EndTime "8:27:56 PST"]
[Termination "Grossboss19 won by resignation"]

1. c4 {[%clk 0:02:59.2]} 1... c5 {[%clk 0:02:59.4]} 2. Nf3 {[%clk 0:02:57.4]}
2... Nc6 {[%clk 0:03:00]} 3. d4 {[%clk 0:02:57.8]} 3... cxd4 {[%clk 0:03:00]} 4.
Nxd4 {[%clk 0:02:58.7]} 4... Nf6 {[%clk 0:03:00.6]} 5. Nc3 {[%clk 0:02:59.2]}
5... e6 {[%clk 0:03:01.1]} 6. e4 {[%clk 0:02:56.2]} 6... Bb4 {[%clk 0:02:58.7]}
7. f3 {[%clk 0:02:54]} 7... d5 {[%clk 0:02:53.5]} 8. cxd5 {[%clk 0:02:53.6]}
8... exd5 {[%clk 0:02:53.9]} 9. Bb5 {[%clk 0:02:53.7]} 9... O-O {[%clk
0:02:47.6]} 10. Bxc6 {[%clk 0:02:51.7]} 10... bxc6 {[%clk 0:02:46.4]} 11. Nxc6
{[%clk 0:02:49.1]} 11... Bxc3+ {[%clk 0:02:46.6]} 12. bxc3 {[%clk 0:02:49.4]}
12... Qe8 {[%clk 0:02:41.8]} 13. Nd4 {[%clk 0:02:39.9]} 13... dxe4 {[%clk
0:02:41.8]} 14. O-O {[%clk 0:02:40]} 14... exf3 {[%clk 0:02:39.8]} 15. Qxf3
{[%clk 0:02:40.9]} 15... Ba6 {[%clk 0:02:39.1]} 16. Ba3 {[%clk 0:02:31.3]} 16...
Bxf1 {[%clk 0:02:37.3]} 17. Rxf1 {[%clk 0:02:24.2]} 17... Qa4 {[%clk 0:02:32.4]}
18. Bxf8 {[%clk 0:01:49.6]} 18... Rxf8 {[%clk 0:02:33.3]} 19. Nf5 {[%clk
0:01:50.1]} 19... Qe4 {[%clk 0:02:19.6]} 20. Qg3 {[%clk 0:01:41.3]} 20... Qg4
{[%clk 0:02:14.1]} 21. Qd6 {[%clk 0:00:59.2]} 21... Re8 {[%clk 0:01:11]} 22.
Qxf6 {[%clk 0:00:42.5]} 22... h5 {[%clk 0:00:40.7]} 23. Nh6+ {[%clk 0:00:27.5]}
23... gxh6 {[%clk 0:00:31.3]} 24. Qxf7+ {[%clk 0:00:26.8]} 1-0

[Event "Early-Titled-Tuesday-Blitz-January-16-2024"]
[Site "Chess.com"]
[Date "2024.01.16"]
[Round "3"]
[White "Rud_Makarian"]
[Black "tjallkompall"]
[Result "1-0"]
[WhiteElo "3036"]
[BlackElo "2761"]
[TimeControl "180+1"]
[EndTime "8:27:57 PST"]
[Termination "Rud_Makarian won by resignation"]

1. d4 {[%clk 0:03:00.9]} 1... Nf6 {[%clk 0:02:59.4]} 2. c4 {[%clk 0:03:01.4]}
2... c5 {[%clk 0:02:59.5]} 3. d5 {[%clk 0:03:00.8]} 3... e6 {[%clk 0:03:00.1]}
4. Nc3 {[%clk 0:03:00.8]} 4... exd5 {[%clk 0:03:00.6]} 5. cxd5 {[%clk
0:03:01.7]} 5... d6 {[%clk 0:03:01.2]} 6. e4 {[%clk 0:02:59.8]} 6... g6 {[%clk
0:03:01.7]} 7. h3 {[%clk 0:03:00.5]} 7... Bg7 {[%clk 0:03:01]} 8. Nf3 {[%clk
0:03:01.1]} 8... O-O {[%clk 0:03:00.9]} 9. Bd3 {[%clk 0:03:01.8]} 9... Re8
{[%clk 0:02:51]} 10. O-O {[%clk 0:03:01.9]} 10... Nbd7 {[%clk 0:02:47.7]} 11. a4
{[%clk 0:03:02.4]} 11... c4 {[%clk 0:02:45.1]} 12. Bc2 {[%clk 0:02:51.1]} 12...
Nc5 {[%clk 0:02:45.1]} 13. Re1 {[%clk 0:02:49.8]} 13... Nfd7 {[%clk 0:02:36.6]}
14. Bf4 {[%clk 0:02:49.8]} 14... Qb6 {[%clk 0:02:23.3]} 15. Nb5 {[%clk
0:02:41.1]} 15... Ne5 {[%clk 0:02:13.3]} 16. Nxe5 {[%clk 0:02:40.2]} 16... Bxe5
{[%clk 0:02:14]} 17. Bxe5 {[%clk 0:02:40.5]} 17... Rxe5 {[%clk 0:02:14.7]} 18.
Qd4 {[%clk 0:02:39.3]} 18... a6 {[%clk 0:02:05.9]} 19. Na3 {[%clk 0:02:33.7]}
19... Nxa4 {[%clk 0:01:55.7]} 20. Qxc4 {[%clk 0:02:18.9]} 20... Nc5 {[%clk
0:01:41.9]} 21. Qd4 {[%clk 0:02:12.4]} 21... Bd7 {[%clk 0:01:26.6]} 22. Nc4
{[%clk 0:02:09.5]} 22... Qb4 {[%clk 0:01:26.6]} 23. Rad1 {[%clk 0:01:51.3]}
23... Re7 {[%clk 0:00:59.4]} 24. Nxd6 {[%clk 0:01:51.3]} 24... Qxd4 {[%clk
0:00:59.2]} 25. Rxd4 {[%clk 0:01:52.2]} 25... b5 {[%clk 0:00:59.4]} 26. b4
{[%clk 0:01:45.7]} 26... Na4 {[%clk 0:00:54.9]} 27. e5 {[%clk 0:01:45.3]} 27...
Nb6 {[%clk 0:00:51.6]} 28. f4 {[%clk 0:01:43.1]} 28... f5 {[%clk 0:00:35]} 29.
Nb7 {[%clk 0:01:34.9]} 29... Nxd5 {[%clk 0:00:31.6]} 30. Bb3 {[%clk 0:01:24.4]}
30... Be6 {[%clk 0:00:31]} 31. Nc5 {[%clk 0:01:20.6]} 31... Nc7 {[%clk
0:00:27.4]} 32. Nxe6 {[%clk 0:01:20]} 32... Nxe6 {[%clk 0:00:27.9]} 33. Rd6
{[%clk 0:01:19.7]} 33... Kf7 {[%clk 0:00:27.8]} 34. Rc1 {[%clk 0:01:20.3]} 34...
Rae8 {[%clk 0:00:12.4]} 35. Rcc6 {[%clk 0:01:17.5]} 1-0